[Event "Titled Tuesday Blitz November 30 2021"]
[White "Sadhwani, Raunak"]
[Black "Onyshchuk, Volodymyr"]
[WhiteFideId "35093487"]
[BlackFideId "14114038"]
[WhiteElo "2517"]
[BlackElo "2603"]
[Result "1-0"]
[Round "11"]
[TimeControl "180+1"]
[Date "2021.11.30"]
[WhiteClock "0:00:35"]
[BlackClock "0:00:50"]

1. d4 {[%clk 0:03:00]}  d6 {[%clk 0:03:00]} 2. Nf3 {[%clk 0:03:00]}  g6 {[%clk 0:03:00]} 3. e4 {[%clk 0:03:00]}  Bg7 {[%clk 0:03:00]} 4. Bc4 {[%clk 0:02:59]}  Nf6 {[%clk 0:03:00]} 5. Qe2 {[%clk 0:02:59]}  O-O {[%clk 0:02:57]} 6. e5 {[%clk 0:02:59]}  dxe5 {[%clk 0:02:57]} 7. dxe5 {[%clk 0:03:00]}  Nd5 {[%clk 0:02:57]} 8. h3 {[%clk 0:02:59]}  c6 {[%clk 0:02:56]} 9. O-O {[%clk 0:02:59]}  Qc7 {[%clk 0:02:52]} 10. Re1 {[%clk 0:02:55]}  a5 {[%clk 0:02:40]} 11. a4 {[%clk 0:02:52]}  Na6 {[%clk 0:02:40]} 12. Bd2 {[%clk 0:02:52]}  Nc5 {[%clk 0:02:39]} 13. Nc3 {[%clk 0:02:45]}  Nb4 {[%clk 0:02:35]} 14. Be3 {[%clk 0:02:43]}  Ne6 {[%clk 0:02:32]} 15. Rad1 {[%clk 0:02:33]}  b6 {[%clk 0:02:32]} 16. Qd2 {[%clk 0:02:20]}  Rd8 {[%clk 0:02:22]} 17. Qc1 {[%clk 0:02:20]}  Rxd1 {[%clk 0:02:19]} 18. Rxd1 {[%clk 0:02:21]}  Bd7 {[%clk 0:02:10]} 19. Bxb6 {[%clk 0:02:16]}  Qxb6 {[%clk 0:02:09]} 20. Rxd7 {[%clk 0:02:16]}  Ra7 {[%clk 0:02:01]} 21. Rxa7 {[%clk 0:02:07]}  Qxa7 {[%clk 0:02:01]} 22. Bxe6 {[%clk 0:02:07]}  fxe6 {[%clk 0:02:01]} 23. Qd2 {[%clk 0:01:54]}  h6 {[%clk 0:01:57]} 24. Ne4 {[%clk 0:01:48]}  Nd5 {[%clk 0:01:55]} 25. c4 {[%clk 0:01:28]}  Nb4 {[%clk 0:01:45]} 26. b3 {[%clk 0:01:13]}  Qc7 {[%clk 0:01:44]} 27. Nc5 {[%clk 0:01:12]}  Qc8 {[%clk 0:01:41]} 28. Nd4 {[%clk 0:01:10]}  Bxe5 {[%clk 0:01:40]} 29. Ndxe6 {[%clk 0:01:03]}  Kh7 {[%clk 0:01:36]} 30. h4 {[%clk 0:00:57]}  Qg8 {[%clk 0:01:26]} 31. Qe3 {[%clk 0:00:48]}  Bd6 {[%clk 0:01:23]} 32. Qe4 {[%clk 0:00:45]}  Qh8 {[%clk 0:01:12]} 33. g3 {[%clk 0:00:39]}  Qe5 {[%clk 0:00:58]} 34. Nf8+ {[%clk 0:00:37]}  Kg7 {[%clk 0:00:50]} 35. Qxg6+ {[%clk 0:00:35]} 1-0


[Site "https://www.chess.com"]

[Event "Titled Tuesday Blitz November 30 2021"]
[White "Samunenkov, Ihor"]
[Black "Demchenko, Anton"]
[WhiteFideId "14187086"]
[BlackFideId "4160258"]
[WhiteElo "2348"]
[BlackElo "2583"]
[Result "0-1"]
[Round "11"]
[TimeControl "180+1"]
[Date "2021.11.30"]
[WhiteClock "0:00:13"]
[BlackClock "0:00:49"]

1. d4 {[%clk 0:03:00]}  d5 {[%clk 0:03:00]} 2. Nf3 {[%clk 0:03:00]}  Nf6 {[%clk 0:03:00]} 3. g3 {[%clk 0:03:01]}  Bf5 {[%clk 0:02:55]} 4. c4 {[%clk 0:03:00]}  c6 {[%clk 0:02:54]} 5. Nc3 {[%clk 0:03:01]}  e6 {[%clk 0:02:54]} 6. Nh4 {[%clk 0:03:01]}  Bg4 {[%clk 0:02:46]} 7. f3 {[%clk 0:03:00]}  Bh5 {[%clk 0:02:46]} 8. Qb3 {[%clk 0:03:00]}  Qb6 {[%clk 0:02:40]} 9. g4 {[%clk 0:02:55]}  Bg6 {[%clk 0:02:39]} 10. Qxb6 {[%clk 0:02:42]}  axb6 {[%clk 0:02:39]} 11. Nxg6 {[%clk 0:02:43]}  hxg6 {[%clk 0:02:39]} 12. g5 {[%clk 0:02:44]}  Nh5 {[%clk 0:02:36]} 13. cxd5 {[%clk 0:02:44]}  exd5 {[%clk 0:02:35]} 14. e4 {[%clk 0:02:44]}  Ng3 {[%clk 0:02:31]} 15. Rg1 {[%clk 0:01:50]}  Nxf1 {[%clk 0:02:30]} 16. Kxf1 {[%clk 0:01:51]}  dxe4 {[%clk 0:02:27]} 17. fxe4 {[%clk 0:01:49]}  Rxh2 {[%clk 0:02:27]} 18. Ne2 {[%clk 0:01:48]}  Bd6 {[%clk 0:02:08]} 19. e5 {[%clk 0:01:40]}  Be7 {[%clk 0:02:08]} 20. Bf4 {[%clk 0:01:40]}  Rh4 {[%clk 0:01:54]} 21. Kf2 {[%clk 0:01:22]}  Nd7 {[%clk 0:01:53]} 22. a3 {[%clk 0:01:19]}  Nf8 {[%clk 0:01:51]} 23. Rac1 {[%clk 0:01:19]}  Ne6 {[%clk 0:01:49]} 24. Be3 {[%clk 0:01:20]}  Rh2+ {[%clk 0:01:46]} 25. Kf3 {[%clk 0:01:15]}  Kd7 {[%clk 0:01:41]} 26. Rcd1 {[%clk 0:00:57]}  Nc7 {[%clk 0:01:32]} 27. Bf4 {[%clk 0:00:38]}  Rh3+ {[%clk 0:01:25]} 28. Ke4 {[%clk 0:00:36]}  Rb3 {[%clk 0:01:22]} 29. Nc3 {[%clk 0:00:28]}  Rxb2 {[%clk 0:01:00]} 30. d5 {[%clk 0:00:28]}  cxd5+ {[%clk 0:00:59]} 31. Nxd5 {[%clk 0:00:29]}  Nxd5 {[%clk 0:00:59]} 32. Rxd5+ {[%clk 0:00:30]}  Ke6 {[%clk 0:00:59]} 33. Rd4 {[%clk 0:00:22]}  Bc5 {[%clk 0:00:58]} 34. Rgd1 {[%clk 0:00:20]}  Bxd4 {[%clk 0:00:57]} 35. Rxd4 {[%clk 0:00:21]}  Rxa3 {[%clk 0:00:50]} 36. Rd8 {[%clk 0:00:13]}  Rb4+ {[%clk 0:00:49]} 0-1


[Site "https://www.chess.com"]

[Event "Titled Tuesday Blitz November 30 2021"]
[White "Sviridov, Valery"]
[Black "Pichot, Alan"]
[WhiteFideId "4120680"]
[BlackFideId "110973"]
[WhiteElo "2454"]
[BlackElo "2600"]
[Result "1-0"]
[Round "11"]
[TimeControl "180+1"]
[Date "2021.11.30"]
[WhiteClock "0:00:41"]
[BlackClock "0:00:03"]

1. Nf3 {[%clk 0:03:00]}  Nf6 {[%clk 0:02:59]} 2. g3 {[%clk 0:03:01]}  d5 {[%clk 0:02:58]} 3. Bg2 {[%clk 0:03:01]}  e6 {[%clk 0:02:57]} 4. O-O {[%clk 0:03:02]}  Be7 {[%clk 0:02:57]} 5. d3 {[%clk 0:03:01]}  O-O {[%clk 0:02:57]} 6. Nbd2 {[%clk 0:03:02]}  c5 {[%clk 0:02:57]} 7. e4 {[%clk 0:03:02]}  Nc6 {[%clk 0:02:57]} 8. e5 {[%clk 0:03:02]}  Nd7 {[%clk 0:02:57]} 9. Re1 {[%clk 0:03:03]}  Qc7 {[%clk 0:02:58]} 10. Qe2 {[%clk 0:03:03]}  b5 {[%clk 0:02:58]} 11. Nf1 {[%clk 0:03:03]}  Bb7 {[%clk 0:02:58]} 12. Bf4 {[%clk 0:03:04]}  Rfc8 {[%clk 0:02:57]} 13. h4 {[%clk 0:03:03]}  a5 {[%clk 0:02:56]} 14. h5 {[%clk 0:03:02]}  h6 {[%clk 0:02:55]} 15. N1h2 {[%clk 0:03:03]}  a4 {[%clk 0:02:51]} 16. Ng4 {[%clk 0:03:01]}  Qd8 {[%clk 0:02:51]} 17. Qd2 {[%clk 0:02:59]}  b4 {[%clk 0:02:31]} 18. Bxh6 {[%clk 0:02:54]}  gxh6 {[%clk 0:02:29]} 19. Nxh6+ {[%clk 0:02:54]}  Kg7 {[%clk 0:02:26]} 20. Qf4 {[%clk 0:02:53]}  Qf8 {[%clk 0:02:26]} 21. Ng4 {[%clk 0:02:47]}  Qh8 {[%clk 0:02:13]} 22. h6+ {[%clk 0:02:44]}  Kf8 {[%clk 0:02:06]} 23. c4 {[%clk 0:02:39]}  Nd8 {[%clk 0:01:37]} 24. Ng5 {[%clk 0:02:25]}  Ra6 {[%clk 0:01:05]} 25. Rac1 {[%clk 0:02:02]}  Ba8 {[%clk 0:00:42]} 26. cxd5 {[%clk 0:01:51]}  Bxg5 {[%clk 0:00:41]} 27. Qxg5 {[%clk 0:01:51]}  exd5 {[%clk 0:00:38]} 28. f4 {[%clk 0:01:45]}  Rg6 {[%clk 0:00:37]} 29. Qh5 {[%clk 0:01:44]}  Ne6 {[%clk 0:00:37]} 30. f5 {[%clk 0:01:30]}  Rg5 {[%clk 0:00:36]} 31. Qh4 {[%clk 0:01:31]}  Rxf5 {[%clk 0:00:35]} 32. h7 {[%clk 0:01:31]}  Rg5 {[%clk 0:00:18]} 33. Nf6 {[%clk 0:01:27]}  Nxf6 {[%clk 0:00:10]} 34. exf6 {[%clk 0:01:28]}  Rg6 {[%clk 0:00:08]} 35. Rf1 {[%clk 0:01:25]}  d4 {[%clk 0:00:07]} 36. Rce1 {[%clk 0:01:19]}  Bxg2 {[%clk 0:00:07]} 37. Kxg2 {[%clk 0:01:20]}  Rd8 {[%clk 0:00:06]} 38. Re5 {[%clk 0:01:17]}  Rd6 {[%clk 0:00:06]} 39. Qh5 {[%clk 0:01:08]}  Nc7 {[%clk 0:00:03]} 40. Re7 {[%clk 0:01:04]}  Ne8 {[%clk 0:00:03]} 41. Rxe8+ {[%clk 0:00:59]}  Kxe8 {[%clk 0:00:03]} 42. Qxc5 {[%clk 0:00:59]}  Kd7 {[%clk 0:00:02]} 43. Qa7+ {[%clk 0:00:52]}  Ke6 {[%clk 0:00:01]} 44. Qe7+ {[%clk 0:00:52]}  Kd5 {[%clk 0:00:02]} 45. Qe4+ {[%clk 0:00:52]}  Kc5 {[%clk 0:00:02]} 46. Qe5+ {[%clk 0:00:41]}  Kc6 {[%clk 0:00:02]} 47. Rc1+ {[%clk 0:00:41]}  Kb7 {[%clk 0:00:03]} 48. Qxd6 {[%clk 0:00:41]} 1-0


[Site "https://www.chess.com"]

[Event "Titled Tuesday Blitz November 30 2021"]
[White "Wagner, Dennis"]
[Black "Roman, Rodrigo"]
[WhiteFideId "24650684"]
[BlackFideId "3701220"]
[WhiteElo "2355"]
[BlackElo "2036"]
[Result "1-0"]
[Round "11"]
[TimeControl "180+1"]
[Date "2021.11.30"]
[WhiteClock "0:00:08"]
[BlackClock "0:00:02"]

1. e4 {[%clk 0:03:00]}  c5 {[%clk 0:02:53]} 2. Nf3 {[%clk 0:02:58]}  e6 {[%clk 0:02:52]} 3. d4 {[%clk 0:02:58]}  cxd4 {[%clk 0:02:53]} 4. Nxd4 {[%clk 0:02:58]}  Nc6 {[%clk 0:02:52]} 5. Nc3 {[%clk 0:02:58]}  Qc7 {[%clk 0:02:51]} 6. Be3 {[%clk 0:02:54]}  a6 {[%clk 0:02:49]} 7. Be2 {[%clk 0:02:55]}  Nf6 {[%clk 0:02:40]} 8. O-O {[%clk 0:02:53]}  Bb4 {[%clk 0:02:37]} 9. Nxc6 {[%clk 0:02:52]}  bxc6 {[%clk 0:02:34]} 10. f4 {[%clk 0:02:52]}  a5 {[%clk 0:02:29]} 11. e5 {[%clk 0:02:44]}  Nd5 {[%clk 0:02:27]} 12. Nxd5 {[%clk 0:02:43]}  cxd5 {[%clk 0:02:27]} 13. c3 {[%clk 0:02:15]}  Bc5 {[%clk 0:02:19]} 14. Bd4 {[%clk 0:02:15]}  O-O {[%clk 0:02:17]} 15. Kh1 {[%clk 0:02:12]}  d6 {[%clk 0:02:14]} 16. Rf3 {[%clk 0:01:41]}  dxe5 {[%clk 0:01:46]} 17. fxe5 {[%clk 0:01:40]}  Ba6 {[%clk 0:01:41]} 18. Rg3 {[%clk 0:01:28]}  Bxd4 {[%clk 0:01:36]} 19. cxd4 {[%clk 0:01:26]}  Bxe2 {[%clk 0:01:34]} 20. Qxe2 {[%clk 0:01:27]}  f6 {[%clk 0:01:30]} 21. exf6 {[%clk 0:01:13]}  Rxf6 {[%clk 0:01:31]} 22. Re3 {[%clk 0:01:10]}  Qb6 {[%clk 0:01:25]} 23. Re1 {[%clk 0:01:06]}  Raf8 {[%clk 0:01:21]} 24. h3 {[%clk 0:00:55]}  Qxd4 {[%clk 0:00:54]} 25. Rxe6 {[%clk 0:00:53]}  h6 {[%clk 0:00:54]} 26. Rxf6 {[%clk 0:00:52]}  Rxf6 {[%clk 0:00:55]} 27. Rd1 {[%clk 0:00:46]}  Qf2 {[%clk 0:00:47]} 28. Qxf2 {[%clk 0:00:46]}  Rxf2 {[%clk 0:00:46]} 29. Rxd5 {[%clk 0:00:47]}  a4 {[%clk 0:00:35]} 30. Ra5 {[%clk 0:00:47]}  Rxb2 {[%clk 0:00:33]} 31. Rxa4 {[%clk 0:00:47]}  Kh7 {[%clk 0:00:25]} 32. Ra6 {[%clk 0:00:47]}  h5 {[%clk 0:00:24]} 33. h4 {[%clk 0:00:36]}  Rb4 {[%clk 0:00:17]} 34. g3 {[%clk 0:00:36]}  Rb2 {[%clk 0:00:17]} 35. Kg1 {[%clk 0:00:35]}  g6 {[%clk 0:00:13]} 36. Kf1 {[%clk 0:00:33]}  Kg7 {[%clk 0:00:14]} 37. Ke1 {[%clk 0:00:33]}  Rg2 {[%clk 0:00:14]} 38. Ra3 {[%clk 0:00:32]}  Kf6 {[%clk 0:00:13]} 39. Kf1 {[%clk 0:00:27]}  Rb2 {[%clk 0:00:13]} 40. Rf3+ {[%clk 0:00:27]}  Ke5 {[%clk 0:00:13]} 41. Rf2 {[%clk 0:00:28]}  Rb1+ {[%clk 0:00:13]} 42. Kg2 {[%clk 0:00:28]}  Ra1 {[%clk 0:00:13]} 43. Re2+ {[%clk 0:00:28]}  Kf5 {[%clk 0:00:13]} 44. Rf2+ {[%clk 0:00:27]}  Ke5 {[%clk 0:00:12]} 45. Kf3 {[%clk 0:00:25]}  Rg1 {[%clk 0:00:09]} 46. Rg2 {[%clk 0:00:22]}  Rf1+ {[%clk 0:00:09]} 47. Ke2 {[%clk 0:00:22]}  Ra1 {[%clk 0:00:09]} 48. Kd3 {[%clk 0:00:23]}  Kd5 {[%clk 0:00:09]} 49. Kc3 {[%clk 0:00:21]}  Ke4 {[%clk 0:00:09]} 50. Rd2 {[%clk 0:00:15]}  Rc1+ {[%clk 0:00:08]} 51. Kb4 {[%clk 0:00:09]}  Rc6 {[%clk 0:00:07]} 52. a4 {[%clk 0:00:08]}  Kf3 {[%clk 0:00:07]} 53. Rd3+ {[%clk 0:00:08]}  Kg4 {[%clk 0:00:07]} 54. a5 {[%clk 0:00:08]}  Rc1 {[%clk 0:00:06]} 55. Ra3 {[%clk 0:00:07]}  Rb1+ {[%clk 0:00:06]} 56. Kc5 {[%clk 0:00:08]}  Rb8 {[%clk 0:00:06]} 57. a6 {[%clk 0:00:08]}  Ra8 {[%clk 0:00:01]} 58. Kb6 {[%clk 0:00:08]}  Rb8+ {[%clk 0:00:02]} 59. Kc7 {[%clk 0:00:08]}  Rb3 {[%clk 0:00:02]} 60. Rxb3 {[%clk 0:00:08]} 1-0